lending/lending_fUSD_20251021
["ID","MTS","AMOUNT","RATE_DAILY","PERIOD"]
[392004873,1761084637141,-171.0,0.00023675,2]
[392004874,1761084637150,-171.0,0.00023675,2]
[392004875,1761084637160,-171.0,0.00023675,2]
[392004876,1761084637171,-171.0,0.00023675,2]
[392004877,1761084637181,-171.0,0.00023675,2]
[392004878,1761084637190,-171.0,0.00023675,2]
[392004879,1761084637200,-171.0,0.00023675,2]
[392004880,1761084637210,-1106.0,0.00023691,2]
[392004881,1761084637221,-9140.99788555,0.00023825,2]
[392004882,1761084637231,-560.55,0.00023836,2]
[392004883,1761084637241,-410.68221605,0.00023866,2]
[392004884,1761084637251,-2472.0,0.00023893,2]
[392004885,1761084637260,-224.0,0.00023972,2]
[392004886,1761084637271,-224.0,0.00024022,2]
[392004887,1761084637281,-224.0,0.00024069,2]
[392004888,1761084637292,-150.0,0.00024072,2]
[392004889,1761084637301,-150.0,0.00024072,2]
[392004890,1761084637310,-2052.0,0.00024072,2]
[392004891,1761084637319,-3411.0,0.00024072,2]
[392004892,1761084637329,-572.0,0.00024072,2]
[392004893,1761084637339,-818.0,0.00024072,2]
[392004894,1761084637350,-605.0,0.00024072,2]
[392004895,1761084637359,-1590.0,0.00024072,2]
[392004896,1761084637368,-1311.0,0.00024072,2]
[392004897,1761084637377,-224.0,0.00024119,2]
[392004898,1761084637387,-224.0,0.00024135,2]
[392004899,1761084637397,-224.0,0.00024158,2]
[392004900,1761084637410,-8474.49144194,0.00024185,2]
[392004901,1761084637419,-224.0,0.00024231,2]
[392004902,1761084637428,-224.0,0.00024348,2]
[392004903,1761084637437,-168.0,0.00024367,2]
[392004904,1761084637447,-236.72570951,0.00024374,2]
[392004905,1761084637456,-224.0,0.00024394,2]
[392004906,1761084637465,-2472.0,0.00024411,2]
[392004907,1761084637475,-500.0,0.00024451,2]
[392004908,1761084637485,-2472.0,0.0002447,2]
[392004909,1761084637494,-224.0,0.00024487,2]
[392004910,1761084637504,-163.49,0.00024547,2]
[392004911,1761084637514,-224.0,0.00024551,2]
[392004912,1761084637523,-1349.0,0.00024619,2]
[392004913,1761084637533,-177.36,0.00024658,2]
[392004914,1761084637542,-1000.0,0.00024658,2]
[392004915,1761084637551,-304.14509462,0.00024719,2]
[392004916,1761084637560,-1200.52,0.00024761,2]
[392004917,1761084637569,-1200.52,0.00024761,2]
[392004918,1761084637578,-1200.52,0.00024761,2]
[392004919,1761084637588,-1200.52,0.00024762,2]
[392004920,1761084637598,-1200.52,0.00024762,2]
[392004921,1761084637607,-1200.52,0.00024762,2]
[392004922,1761084637616,-1194.75,0.00024762,2]
[392004923,1761084637626,-168.0,0.00024767,2]
[392004924,1761084637635,-476.03091061,0.000248,3]
[392004925,1761084637645,-236676.771958,0.000248,3]
[392004926,1761084637654,-224.0,0.00024819,2]
[392004927,1761084637662,-224.0,0.0002483,2]
[392004928,1761084637672,-224.0,0.00024853,2]
[392004929,1761084637681,-224.0,0.00024862,2]
[392004930,1761084637691,-168.0,0.00024864,2]
[392004931,1761084637701,-74740.0332497,0.0002489,3]
[392004932,1761084637711,-500.0,0.00024899,2]
[392004933,1761084637722,-13164.901046,0.000249,3]
[392004934,1761084637735,-1012.68469585,0.0002498,3]
[392004935,1761084637745,-1249.22000049,0.00024999,10]
[392004936,1761084637754,-12297.13,0.00025,3]
[392004937,1761084637763,-1012.41,0.00025,2]
[392004938,1761084637772,-1349.0,0.0002505,2]
[392004939,1761084637782,-1012.68469585,0.00025266,3]
[392004940,1761084637791,-1000.0,0.00025276,2]
[392004941,1761084637801,-546.93,0.00025288,2]
[392004942,1761084637811,-336.62,0.00025288,2]
[392004943,1761084637825,-9140.99788555,0.00025312,2]
[392004944,1761084637834,-150.0,0.00025718,4]
[392004945,1761084637844,-236.72570951,0.00025783,2]
[392004949,1761084637990,-1090.171,0.00025808,2]
[392004950,1761084638000,-817.0,0.00025808,2]
[392004951,1761084638010,-902.0,0.00025815,2]
[392004952,1761084638019,-2548.0,0.00025815,2]
[392004953,1761084638029,-173.088,0.00025815,2]
[392004954,1761084638039,-2591.0,0.00025815,2]
[392004955,1761084638048,-6451.0,0.00025815,2]
[392004956,1761084638058,-410.68221605,0.0002594,2]
[392004957,1761084638067,-196.6,0.00025991,2]
[392004958,1761084638076,-163.49,0.00026082,2]
[392004959,1761084638085,-150.0,0.00026088,4]
[392004960,1761084638094,-150.0,0.00026088,4]
[392004961,1761084638103,-156.2684648,0.00026088,4]
[392004962,1761084638112,-220.19024346,0.00026088,4]
[392004963,1761084638122,-202.15291315,0.00026088,4]
[392004964,1761084638131,-150.64798966,0.00026088,4]
[392004965,1761084638140,-154.37437212,0.00026088,4]
[392004966,1761084638149,-166.99627086,0.00026088,4]
[392004967,1761084638158,-152.0,0.00026159,3]
[392004968,1761084638168,-1012.68469585,0.00026185,3]
[392004969,1761084638178,-8474.49144194,0.00026195,2]
[392004970,1761084638187,-304.14509461,0.00026305,2]
[392004971,1761084638196,-2009.363352,0.000266,2]
[392004972,1761084638206,-373.6,0.00026676,2]
[392004973,1761084638215,-196.6,0.00026694,2]
[392004974,1761084638226,-9140.99788555,0.00026799,2]
[392004975,1761084638236,-1125.267711,0.00026954,10]
[392004976,1761084638247,-150.0,0.00027072,2]
[392004977,1761084638257,-2052.0,0.00027072,2]
[392004978,1761084638266,-3411.0,0.00027072,2]
[392004979,1761084638275,-570.0,0.00027072,2]
[392004980,1761084638286,-707.0,0.00027072,2]
[392004981,1761084638296,-605.0,0.00027072,2]
[392004982,1761084638305,-1587.0,0.00027072,2]
[392004983,1761084638315,-1311.0,0.00027072,2]
[392004984,1761084638326,-1012.68469585,0.0002709,3]
[392004985,1761084638335,-2000.0,0.000271,2]
[392004986,1761084638344,-238.45,0.00027143,2]
[392004987,1761084638354,-300.0,0.00027143,2]
[392004988,1761084638363,-236.72570951,0.00027192,2]
[392004989,1761084638374,-1012.68469585,0.00027377,3]
[392004990,1761084638384,-1012.68469585,0.00027387,3]
[392004991,1761084638394,-1000.0,0.00027397,2]
[392004992,1761084638404,-1000.0,0.00027397,2]
[392004993,1761084638418,-1000.0,0.00027397,2]
[392004994,1761084638427,-1000.0,0.00027397,2]
[392004995,1761084638436,-150.0,0.00027397,60]
[392004996,1761084638447,-177.36,0.00027397,2]
[392004997,1761084638457,-370.21,0.00027397,30]
[392004998,1761084638467,-300.0,0.00027397,2]
[392004999,1761084638478,-33966.67,0.00027397,2]
[392005001,1761084638490,-150.33006744,0.00027397,5]
[392005003,1761084638500,-1196.16,0.000274,7]
[392005004,1761084638510,-259.54072096,0.00027452,60]
[392005005,1761084638520,-1000.0,0.00027486,4]
[392005006,1761084638530,-1000.0,0.00027574,2]
[392005007,1761084638540,-695.92,0.00027589,2]
[392005008,1761084638550,-160.71,0.00027589,2]
[392005009,1761084638560,-949.84,0.00027589,2]
[392005012,1761084638570,-163.49,0.00027616,2]
[392005014,1761084638580,-949.32,0.00027616,2]
[392005016,1761084638590,-695.92,0.00027616,2]
[392005018,1761084638599,-695.92,0.00027616,2]
[392005020,1761084638609,-695.92,0.00027616,2]
[392005022,1761084638618,-695.92,0.00027616,2]
[392005024,1761084638628,-199.0,0.00027671,7]
[392005026,1761084638637,-304.14509461,0.00027891,2]
[392005028,1761084638648,-201.016458,0.000279,2]
[392005030,1761084638658,-199.0,0.00027945,8]
[392005032,1761084638667,-500.0,0.00027979,2]
[392005035,1761084638677,-150.0,0.0002798,2]
[392005037,1761084638687,-2218.51535713,0.0002798,2]
[392005039,1761084638698,-1012.68469585,0.00027989,3]
[392005041,1761084638707,-1000.0,0.00027989,30]
[392005043,1761084638718,-1012.68469585,0.0002799,3]
[392005045,1761084638728,-7852.52757035,0.00028,2]
[392005047,1761084638738,-1400.09736695,0.00028,30]
[392005049,1761084638748,-50062.44100942,0.00028,2]
[392005051,1761084638758,-160.0,0.00028,2]
[392005053,1761084638767,-181.17,0.00028,2]
[392005055,1761084638776,-1000.0,0.00028,2]
[392005057,1761084638786,-23506.16567242,0.00028,2]
[392005059,1761084638796,-26843.25769538,0.00028,2]
[392005085,1761084639224,-86047.49447673,0.00028,2]
[392005086,1761084639234,-20912.87078827,0.00028,2]
[392005087,1761084639244,-410.68221605,0.00028014,2]
[392005088,1761084639254,-289.043,0.00028089,18]
[392005089,1761084639263,-1297.0,0.000281,2]
[392005090,1761084639273,-1000.0,0.00028117,30]
[392005091,1761084639283,-500.0,0.00028117,2]
[392005092,1761084639292,-25000.0,0.00028118,10]
[392005093,1761084639305,-8474.49144194,0.00028205,2]
[392005094,1761084639315,-199.0,0.00028219,9]
[392005095,1761084639326,-196.31400942,0.00028253,4]
[392005096,1761084639336,-9140.99788555,0.00028287,2]
[392005097,1761084639345,-199.0,0.00028493,10]
[392005098,1761084639355,-150.0,0.00028548,2]
[392005099,1761084639365,-150.0,0.00028548,2]
[392005100,1761084639374,-168.4,0.00028548,2]
[392005101,1761084639384,-168.4,0.00028548,2]
[392005102,1761084639394,-1200.52,0.00028548,2]
[392005103,1761084639406,-1200.52,0.00028548,2]
[392005104,1761084639418,-168.4,0.00028548,2]
[392005105,1761084639427,-414.05,0.00028548,2]
[392005106,1761084639437,-1200.52,0.00028548,2]
[392005107,1761084639446,-414.05,0.00028548,2]
[392005108,1761084639456,-1200.52,0.00028548,2]
[392005109,1761084639466,-414.05,0.00028548,2]
[392005110,1761084639476,-547.23,0.00028548,2]
[392005111,1761084639486,-547.23,0.00028548,2]
[392005112,1761084639496,-414.05,0.00028548,2]
[392005113,1761084639506,-1200.52,0.00028548,2]
[392005114,1761084639516,-547.23,0.00028548,2]
[392005115,1761084639527,-1200.52,0.00028548,2]
[392005116,1761084639537,-414.05,0.00028548,2]
[392005117,1761084639547,-547.23,0.00028548,2]
[392005118,1761084639559,-1200.52,0.00028548,2]
[392005119,1761084639726,-414.05,0.00028548,2]
[392005120,1761084639736,-547.23,0.00028548,2]
[392005121,1761084639746,-1200.52,0.00028548,2]
[392005122,1761084639757,-414.05,0.00028548,2]
[392005123,1761084639767,-613.9587381,0.00028548,2]
[392005124,1761084639784,-586.5612619,0.00028548,2]
[392005125,1761084639794,-530.29,0.00028548,2]
[392005126,1761084639804,-414.05,0.00028548,2]
[392005127,1761084639815,-1192.6,0.00028548,2]
[392005128,1761084639826,-414.05,0.00028548,2]
[392005129,1761084639836,-351.87,0.00028575,2]
[392005130,1761084639847,-150.0,0.00028575,2]
[392005131,1761084639857,-150.66,0.00028575,2]
[392005132,1761084639867,-336.62,0.00028575,2]
[392005133,1761084639877,-150.0,0.00028575,2]
[392005134,1761084639887,-334.87,0.00028575,2]
[392005135,1761084639898,-414.05,0.00028575,2]
[392005136,1761084639909,-547.23,0.00028575,2]
[392005138,1761084639919,-547.23,0.00028575,2]
[392005140,1761084639930,-365.9,0.00028575,2]
[392005141,1761084639941,-1200.52,0.00028575,2]
[392005142,1761084639953,-414.05,0.00028575,2]
[392005143,1761084639964,-168.4,0.00028575,2]
[392005144,1761084639975,-150.0,0.00028575,2]
[392005145,1761084639985,-1200.52,0.00028575,2]
[392005146,1761084639994,-547.23,0.00028575,2]
[392005147,1761084640004,-150.0,0.00028575,2]
[392005148,1761084640014,-414.05,0.00028575,2]
[392005149,1761084640024,-196.41,0.00028575,2]
[392005150,1761084640034,-547.23,0.00028575,2]
[392005151,1761084640044,-414.05,0.00028575,2]
[392005152,1761084640054,-547.23,0.00028575,2]
[392005153,1761084640064,-547.23,0.00028575,2]
[392005154,1761084640073,-168.4,0.00028575,2]
[392005155,1761084640083,-158.3,0.00028575,2]
[392005156,1761084640093,-365.18,0.00028575,2]
[392005157,1761084640103,-1200.52,0.00028575,2]
[392005158,1761084640115,-236.72570951,0.000286,2]
[392005160,1761084640125,-13557.11,0.00028601,10]
[392005161,1761084640135,-1196.16,0.000287,7]
[392005162,1761084640146,-152.0,0.00028738,4]
[392005163,1761084640157,-13090.40290178,0.0002875,2]
[392005164,1761084640168,-6130.23412667,0.0002876,2]
[392005165,1761084640179,-318.59212418,0.00028767,11]
[392005166,1761084640190,-902.0,0.00028815,2]
[392005167,1761084640200,-2548.0,0.00028815,2]
[392005169,1761084640211,-2587.0,0.00028815,2]
[392005170,1761084640222,-2820.418,0.00028815,2]
[392005171,1761084640233,-32119.94586081,0.00029,2]
[392005172,1761084640243,-1000.0,0.00029,2]
[392005173,1761084640253,-476.03091061,0.00029,10]
[392005174,1761084640263,-1000.0,0.000294,10]
[392005175,1761084640274,-304.14509461,0.00029477,2]
[392005176,1761084640284,-1386.60988234,0.00029489,8]
[392005177,1761084640295,-1000.0,0.00029499,30]
[392005178,1761084640305,-403.21244499,0.00029499,2]
[392005179,1761084640316,-63766.00080644,0.000295,2]
[392005180,1761084640330,-167113.68773394,0.000295,2]
[392005181,1761084640341,-1292.36742204,0.00029587,4]
[392005182,1761084640352,-405.550891,0.00029588,14]
[392005183,1761084640362,-174.096698,0.00029588,14]
[392005184,1761084640373,-405.550891,0.00029588,14]
[392005185,1761084640384,-2088.621997,0.00029588,14]
[392005186,1761084640395,-174.096698,0.00029588,14]
[392005187,1761084640410,-178.273893,0.00029588,14]
[392005188,1761084640421,-5416.930042,0.00029588,14]
[392005189,1761084640431,-2088.621997,0.00029588,14]
[392005190,1761084640444,-178.273893,0.00029588,14]
[392005191,1761084640455,-5416.930042,0.00029588,14]
[392005192,1761084640466,-2088.621997,0.00029588,14]
[392005193,1761084640477,-2088.621997,0.00029588,14]
[392005194,1761084640489,-4199.761246,0.00029588,14]
[392005195,1761084640500,-4199.761246,0.00029588,14]
[392005196,1761084640512,-500.0,0.00029679,7]
[392005197,1761084640522,-500.0,0.00029679,7]
[392005198,1761084640534,-500.0,0.00029679,7]
[392005199,1761084640545,-500.0,0.00029679,7]
[392005200,1761084640556,-500.0,0.00029679,7]
[392005201,1761084640567,-501.73905666,0.00029679,7]
[392005202,1761084640578,-500.0,0.00029679,7]
[392005203,1761084640589,-500.0,0.00029679,7]
[392005204,1761084640601,-500.0,0.00029679,7]
[392005205,1761084640613,-500.0,0.00029679,7]
[392005206,1761084640623,-500.0,0.00029679,7]
[392005207,1761084640633,-500.0,0.00029679,7]
[392005208,1761084640644,-500.0,0.00029679,7]
[392005209,1761084640653,-900.0,0.00029679,7]
[392005210,1761084640663,-500.0,0.00029679,7]
[392005211,1761084640672,-500.0,0.00029679,7]
[392005212,1761084640683,-500.0,0.00029679,7]
[392005213,1761084640693,-500.0,0.00029679,7]
[392005214,1761084640703,-500.0,0.00029679,7]
[392005215,1761084640713,-500.0,0.00029679,7]
[392005216,1761084640723,-938.51336807,0.00029679,7]
[392005217,1761084640734,-500.0,0.00029679,7]
[392005218,1761084640743,-500.0,0.00029679,7]
[392005219,1761084640754,-500.0,0.00029679,7]
[392005220,1761084640765,-727.04780045,0.00029679,7]
[392005221,1761084640775,-500.0,0.00029679,7]
[392005222,1761084640786,-500.0,0.00029679,7]
[392005223,1761084640799,-500.0,0.00029679,7]
[392005224,1761084640810,-500.0,0.00029679,7]
[392005225,1761084640821,-500.0,0.00029679,7]
[392005226,1761084640831,-674.02941388,0.00029679,7]
[392005227,1761084640841,-500.0,0.00029679,7]
[392005228,1761084640852,-500.0,0.00029679,7]
[392005229,1761084640862,-500.0,0.00029679,7]
[392005230,1761084640874,-500.0,0.00029679,7]
[392005231,1761084640884,-500.0,0.00029679,7]
[392005232,1761084640895,-500.0,0.00029679,7]
[392005233,1761084640906,-500.0,0.00029679,7]
[392005234,1761084640917,-500.0,0.00029679,7]
[392005235,1761084640930,-500.0,0.00029679,7]
[392005236,1761084640940,-500.0,0.00029679,7]
[392005237,1761084640949,-500.0,0.00029679,7]
[392005238,1761084640959,-500.0,0.00029679,7]
[392005239,1761084640969,-500.0,0.00029679,7]
[392005240,1761084640980,-500.0,0.00029679,7]
[392005241,1761084640992,-500.0,0.00029679,7]
[392005242,1761084641002,-500.0,0.00029679,7]
[392005243,1761084641013,-500.0,0.00029679,7]
[392005244,1761084641023,-500.0,0.00029679,7]
[392005246,1761084641033,-500.0,0.00029679,7]
[392005248,1761084641044,-775.62446225,0.00029679,7]
[392005250,1761084641054,-800.0,0.00029679,7]
[392005252,1761084641063,-500.0,0.00029679,7]
[392005254,1761084641073,-500.0,0.00029679,7]
[392005256,1761084641083,-500.0,0.00029679,7]
[392005257,1761084641094,-500.0,0.00029679,7]
[392005258,1761084641104,-500.0,0.00029679,7]
[392005259,1761084641114,-500.0,0.00029679,7]
[392005260,1761084641125,-500.0,0.00029679,7]
[392005261,1761084641135,-500.0,0.00029679,7]
[392005262,1761084641146,-500.0,0.00029679,7]
[392005263,1761084641156,-408.32130737,0.00029679,7]
[392005264,1761084641166,-500.0,0.00029679,7]
[392005265,1761084641176,-500.0,0.00029679,7]
[392005266,1761084641187,-500.0,0.00029679,7]
[392005267,1761084641197,-500.0,0.00029679,7]
[392005268,1761084641208,-700.0,0.00029679,7]
[392005269,1761084641218,-908.97383506,0.00029679,7]
[392005270,1761084641228,-500.0,0.00029679,7]
[392005271,1761084641238,-501.60530587,0.00029679,7]
[392005272,1761084641249,-877.71287862,0.00029679,7]
[392005273,1761084641259,-9140.99788555,0.00029774,2]
[392005274,1761084641269,-1000.0,0.00029863,5]
[392005275,1761084641280,-233.41124012,0.0002999,2]
[392005276,1761084641290,-1000.0,0.00029999,30]
[392005277,1761084641301,-210.1190694,0.0003,5]
[392005278,1761084641312,-19555.44908128,0.0003,2]
[392005279,1761084641323,-55363.86934544,0.0003,2]
[392005280,1761084641336,-1254.41808677,0.0003,2]
[392005281,1761084641348,-33844.50818098,0.0003,2]
[392005282,1761084641359,-1786.91884241,0.0003,2]
[392005283,1761084641368,-604.21662872,0.0003,2]
[392005284,1761084641378,-1000.0,0.0003,2]
[392005285,1761084641388,-1943.95149599,0.0003,2]
[392005286,1761084642319,-151.0,0.00018247,2]
[392005287,1761084642328,-300.96024887,0.00019815,2]
[392005323,1761084643763,-192.54,0.00016712,2]
[392005324,1761084643775,-256.03975113,0.00019815,2]
[392005325,1761084643785,-557.0,0.00022815,2]
[392005326,1761084643795,-97.52024887,0.0002394,2]
[392005327,1761084643884,-1102.99975113,0.0002394,2]
[392005328,1761084643894,-192.303,0.00025815,2]
[392005329,1761084643904,-2056.04850401,0.0003,2]
[392005330,1761084643913,-1130.46,0.0003,7]
[392005331,1761084643922,-1196.16,0.0003,7]
[392005332,1761084643934,-170.54302752,0.0003,2]
[392005333,1761084643943,-236.72570951,0.00030009,15]
[392005334,1761084643952,-562.076,0.00030072,2]
[392005335,1761084643962,-2201.739,0.00030072,2]
[392005336,1761084643971,-1208.384,0.00030072,2]
[392005337,1761084643983,-410.68221605,0.00030088,2]
[392005338,1761084643991,-307.07596424,0.0003013,2]
[392005339,1761084644002,-1055.70556915,0.0003013,2]
[392005340,1761084644011,-13620.43440216,0.0003013,2]
[392005341,1761084644020,-3429.43306397,0.0003013,2]
[392005342,1761084644029,-198.36567157,0.0003013,2]
[392005343,1761084644040,-243.20363875,0.0003013,2]
[392005344,1761084644050,-1203.91290532,0.0003013,2]
[392005345,1761084644059,-7603.79754175,0.0003013,2]
[392005346,1761084644068,-177.36,0.00030137,2]
[392005347,1761084644077,-8474.49144194,0.00030215,2]
[392005348,1761084644087,-150.0,0.00030466,2]
[392005349,1761084644097,-150.0,0.00030466,2]
[392005350,1761084644107,-150.0,0.00030466,2]
[392005351,1761084644116,-150.0,0.00030466,2]
[392005352,1761084644126,-151.04,0.00030466,2]
[392005354,1761084644135,-150.0,0.00030493,2]
[392005356,1761084644145,-150.0,0.00030493,2]
[392005357,1761084644154,-150.0,0.00030493,2]
[392005358,1761084644164,-150.0,0.00030493,2]
[392005359,1761084644174,-150.0,0.00030493,2]
[392005360,1761084644183,-150.0,0.00030493,2]
[392005361,1761084644193,-4217.39452798,0.000305,2]
[392005362,1761084644202,-260.89,0.00030685,30]
[392005363,1761084644212,-2000.0,0.000308,2]
[392005364,1761084644220,-1507.76104157,0.00030888,60]
[392005365,1761084644232,-160.5,0.00031,30]
[392005366,1761084644241,-4254.0,0.00031,2]
[392005367,1761084644251,-152.0,0.00031,120]
[392005369,1761084644261,-1000.0,0.00031,2]
[392005370,1761084644270,-5013.15573341,0.00031,3]
[392005372,1761084644395,-7123.0,0.00031,5]
[392005373,1761084644427,-158.0,0.00031,120]
[392005374,1761084644436,-304.14509461,0.00031063,2]
[392005375,1761084644447,-1130.46,0.000312,30]
[392005376,1761084644456,-1196.16,0.000312,7]
[392005377,1761084644466,-9140.99788555,0.00031261,2]
[392005378,1761084644478,-152.0,0.00031318,5]
[392005379,1761084644490,-236.72570951,0.00031418,15]
[392005380,1761084644499,-194.17314073,0.000315,2]
[392005381,1761084644509,-150.0,0.000315,2]
[392005382,1761084644518,-162.092,0.000315,120]
[392005383,1761084644527,-160.79,0.00031524,15]
[392005384,1761084644536,-160.79,0.00031624,15]
[392005385,1761084644546,-160.79,0.00031724,15]
[392005386,1761084644556,-1000.0,0.00031729,2]
[392005387,1761084644565,-1000.0,0.00031823,2]
[392005388,1761084644575,-160.81156535,0.00031824,15]
[392005389,1761084644584,-1000.0,0.00031826,2]
[392005390,1761084644593,-150.0,0.00031836,2]
[392005391,1761084644603,-150.0,0.00031836,2]
[392005392,1761084644612,-150.0,0.00031836,2]
[392005393,1761084644622,-312.72,0.00031836,2]
[392005394,1761084644631,-150.0,0.00031863,2]
[392005395,1761084644641,-150.0,0.00031863,2]
[392005396,1761084644651,-1000.0,0.00031873,2]
[392005397,1761084644660,-1000.0,0.00031915,2]
[392005398,1761084644670,-1000.0,0.00031946,2]
[392005399,1761084644679,-4647.0,0.00031973,2]
[392005400,1761084644689,-947.63948665,0.00032,120]
[392005401,1761084644698,-2074.86565963,0.00032,5]
[392005402,1761084644707,-10216.83525244,0.00032,5]
[392005403,1761084644716,-1000.0,0.00032,2]
[392005404,1761084644725,-605.0,0.00032,120]
[392005405,1761084644736,-1000.0,0.00032,2]
[392005406,1761084644745,-1000.0,0.00032,2]
[392005407,1761084644754,-1000.0,0.00032,2]
[392005408,1761084644763,-1000.0,0.00032,2]
[392005409,1761084644772,-1000.0,0.00032,2]
[392005410,1761084644781,-9085.39012184,0.00032,120]
[392005411,1761084644791,-204.72354312,0.00032,120]
[392005412,1761084644800,-194.67349173,0.00032,120]
[392005413,1761084644809,-201.47583313,0.00032,120]
[392005414,1761084644818,-183.141745,0.00032,120]
[392005415,1761084644828,-176.83312215,0.00032,120]
[392005416,1761084644838,-200.339405,0.00032,120]
[392005417,1761084644847,-476.03091061,0.00032,120]
[392005418,1761084644857,-1425.0,0.00032002,2]
[392005419,1761084644866,-1425.0,0.00032004,2]
[392005420,1761084644876,-1425.0,0.00032062,2]
[392005421,1761084644885,-200.0,0.00032098,2]
[392005422,1761084644895,-200.0,0.00032098,2]
[392005423,1761084644904,-200.0,0.00032098,2]
[392005424,1761084644913,-200.0,0.00032098,2]
[392005425,1761084644923,-200.0,0.00032098,2]
[392005426,1761084644932,-200.0,0.00032098,2]
[392005427,1761084644941,-200.0,0.00032099,2]
[392005428,1761084644951,-200.0,0.00032099,2]
[392005429,1761084644960,-200.0,0.0003213,2]
[392005430,1761084644970,-200.0,0.0003213,2]
[392005431,1761084644980,-252.0,0.0003213,2]
[392005432,1761084644990,-410.68221605,0.00032161,2]
[392005433,1761084645000,-1130.46,0.000322,30]
[392005434,1761084645010,-1000.0,0.00032218,2]
[392005435,1761084645019,-1000.0,0.00032224,30]
[392005436,1761084645029,-8474.49144194,0.00032225,2]
[392005437,1761084645038,-1000.0,0.00032248,2]
[392005438,1761084645048,-1425.0,0.00032261,2]
[392005439,1761084645058,-1425.0,0.00032328,2]
[392005440,1761084645067,-370.21,0.00032379,30]
[392005441,1761084645076,-1425.0,0.0003238,2]
[392005442,1761084645085,-1000.0,0.00032387,2]
[392005443,1761084645094,-1196.16,0.000324,7]
[392005444,1761084645104,-1425.0,0.00032409,2]
[392005445,1761084645113,-1425.0,0.00032427,2]
[392005446,1761084645122,-1000.0,0.00032454,2]
[392005447,1761084645131,-1425.0,0.00032487,2]
[392005448,1761084645140,-300.0,0.000325,2]
[392005449,1761084645150,-300.0,0.000325,2]
[392005450,1761084645159,-300.0,0.000325,2]
[392005451,1761084645168,-300.0,0.000325,2]
[392005452,1761084645177,-344.75363738,0.000325,2]
[392005453,1761084645186,-1425.0,0.00032515,2]
[392005454,1761084645196,-1000.0,0.00032532,2]
[392005455,1761084645205,-1000.0,0.0003255,2]
[392005456,1761084645214,-1425.0,0.00032579,2]
[392005457,1761084645224,-1000.0,0.00032593,2]
[392005458,1761084645234,-200.0,0.00032598,2]
[392005459,1761084645243,-200.0,0.00032598,2]
[392005460,1761084645252,-200.0,0.00032598,2]
[392005461,1761084645262,-200.0,0.00032598,2]
[392005462,1761084645274,-200.0,0.00032598,2]
[392005463,1761084645282,-200.0,0.00032598,2]
[392005464,1761084645292,-200.0,0.00032598,2]
[392005465,1761084645301,-200.0,0.00032598,2]
[392005466,1761084645311,-200.0,0.00032598,2]
[392005467,1761084645320,-200.0,0.00032598,2]
[392005468,1761084645329,-200.0,0.00032598,2]
[392005469,1761084645338,-200.0,0.00032598,2]
[392005470,1761084645348,-200.0,0.00032598,2]
[392005471,1761084645357,-200.0,0.00032598,2]
[392005472,1761084645367,-200.0,0.00032598,2]
[392005473,1761084645376,-200.0,0.00032598,2]
[392005474,1761084645385,-200.0,0.00032598,2]
[392005475,1761084645394,-200.0,0.00032598,2]
[392005476,1761084645405,-200.0,0.00032598,2]
[392005477,1761084645415,-200.0,0.00032598,2]